bitfinex/quotes_SOLUSD_20241218
["timestamp","ask_amount","ask_price","bid_price","bid_amount"]
[1734483916557,16.55772325,224.75,224.65,20.0]
[1734483916883,7.5559,224.82,224.67,23.776884]
[1734483917054,6.0186,224.82,224.7,20.0]
[1734483917253,22.57632325,224.82,224.73,20.0]
[1734483917458,16.55772325,224.82,224.74,0.66725606]
[1734483917750,16.55772325,224.83,224.74,0.66725606]
[1734483918481,16.55772325,224.81,224.74,0.66725606]
[1734483920290,16.55772325,224.78,224.71,0.66728128]
[1734483920493,16.55772325,224.76,224.69,20.0]
[1734483920667,16.55772325,224.74,224.66,0.66743119]
[1734483921160,16.55772325,224.75,224.66,0.66743119]
[1734483921568,16.55772325,224.76,224.66,0.66743119]
[1734483921891,16.55772325,224.73,224.66,0.66743119]
[1734483922089,16.55772325,224.74,224.66,0.66743119]
[1734483922292,16.55772325,224.72,224.64,11.43230931]
[1734483922587,20.0,224.83,224.59,1.5481]
[1734483922588,16.55772325,224.69,224.61,0.66755183]
[1734483922994,16.55772325,224.7,224.61,0.66755183]
[1734483923300,16.55772325,224.69,224.61,0.66755183]
[1734483923471,16.55772325,224.69,224.59,1.6481]
[1734483923472,16.55772325,224.67,224.6,0.66764987]
[1734483923786,16.55772325,224.66,224.58,12.10001463]
[1734483924004,16.55772325,224.67,224.58,12.10001463]
[1734483924494,16.55772325,224.66,224.58,12.10001463]
[1734483924682,16.55772325,224.67,224.58,11.43230931]
[1734483925016,16.55772325,224.65,224.58,11.43230931]
[1734483925247,16.55772325,224.63,224.55,0.66770443]
[1734483925495,16.55772325,224.61,224.53,8.12661543]
[1734483925661,16.55772325,224.6,224.53,2.21590064]
[1734483926470,16.55772325,224.61,224.55,20.0]
[1734483926668,16.55772325,224.6,224.52,11.43230931]
[1734483927075,16.55772325,224.62,224.53,6.57861733]
[1734483927275,16.55772325,224.62,224.53,12.10021185]
[1734483927676,16.55772325,224.64,224.53,12.10021185]
[1734483927877,6.463,224.74,224.57,20.0]
[1734483927878,16.55772325,224.66,224.57,20.0]
[1734483928190,16.55772325,224.67,224.58,0.66770992]
[1734483928376,16.55772325,224.65,224.57,20.0]
[1734483928591,16.55772325,224.64,224.57,20.0]
[1734483929996,16.55772325,224.66,224.57,20.66777424]
[1734483930893,16.55772325,224.68,224.57,20.66777424]
[1734483931202,16.55772325,224.68,224.57,32.10008355]
[1734483931509,16.55772325,224.71,224.61,20.0]
[1734483932308,16.55772325,224.71,224.62,0.66762615]
[1734483933108,16.55772325,224.69,224.61,25.91071479]
[1734483933352,16.55772325,224.67,224.59,0.66760025]
[1734483933638,16.55772325,224.63,224.56,5.91071479]
[1734483934836,16.55772325,224.61,224.52,5.52159452]
[1734483935133,16.55772325,224.56,224.5,5.91071479]
[1734483935637,16.55772325,224.58,224.5,5.91071479]
[1734483936027,16.55772325,224.57,224.5,5.91071479]
[1734483936570,16.55772325,224.56,224.5,5.91071479]
[1734483937318,16.55772325,224.54,224.45,5.52159452]
[1734483937521,16.55772325,224.51,224.44,5.91071479]
[1734483937751,16.55772325,224.49,224.44,5.91071479]
[1734483938035,16.55772325,224.49,224.38,12.10041372]
[1734483938235,16.55772325,224.48,224.38,12.10041372]
[1734483938537,16.55772325,224.49,224.38,12.10041372]
[1734483938723,16.55772325,224.5,224.39,5.91071479]
[1734483938923,16.55772325,224.51,224.4,0.66817466]
[1734483939125,16.55772325,224.51,224.4,6.57888945]
[1734483939526,16.55772325,224.48,224.43,20.0]
[1734483939723,16.55772325,224.48,224.4,5.91071479]
[1734483939910,16.55772325,224.46,224.4,5.91071479]
[1734483940121,16.55772325,224.42,224.34,5.91071479]
[1734483940370,16.55772325,224.4,224.34,5.91071479]
[1734483940532,16.55772325,224.4,224.31,2.69783206]
[1734483940727,16.55772325,224.42,224.32,0.66850308]
[1734483940926,16.55772325,224.43,224.32,6.57921787]
[1734483941714,16.55772325,224.43,224.33,23.776884]
[1734483941909,16.55772325,224.43,224.34,0.66841838]
[1734483942130,16.55772325,224.42,224.33,23.776884]
[1734483942321,16.55772325,224.41,224.32,6.57916517]
[1734483942522,16.55772325,224.39,224.32,5.91071479]
[1734483943435,16.55772325,224.38,224.32,5.91071479]
[1734483944218,16.55772325,224.33,224.18,1.6852]
[1734483944419,16.55772325,224.26,224.18,1.5852]
[1734483944623,6.226,224.35,224.16,0.66890319]
[1734483944825,6.226,224.35,224.12,0.66895076]
[1734483944826,16.55772325,224.21,224.12,0.66895076]
[1734483945026,16.55772325,224.2,224.12,0.66895076]
[1734483945224,16.55772325,224.2,224.1,1.5852]
[1734483945427,16.55772325,224.19,224.1,7.49591479]
[1734483945739,16.55772325,224.28,224.1,5.91071479]
[1734483945740,16.55772325,224.17,224.1,5.91071479]
[1734483945938,16.55772325,224.16,224.1,5.91071479]
[1734483946252,16.55772325,224.21,224.1,6.57993641]
[1734483946446,16.55772325,224.23,224.11,5.91071479]
[1734483946732,16.55772325,224.23,224.12,0.66899318]
[1734483947240,16.55772325,224.22,224.14,20.0]
[1734483947926,16.55772325,224.21,224.11,6.57976528]
[1734483949005,16.55772325,224.21,224.11,5.91071479]
[1734483949190,16.55772325,224.21,224.14,20.0]
[1734483949394,16.55772325,224.28,224.08,20.0]
[1734483949395,16.55772325,224.19,224.08,20.0]
[1734483949617,16.55772325,224.21,224.13,20.0]
[1734483950427,16.55772325,224.23,224.13,20.0]
[1734483950593,16.55772325,224.23,224.14,0.66901431]
[1734483951824,16.55772325,224.21,224.13,20.0]
[1734483952896,16.55772325,224.19,224.07,1.19782827]
[1734483953099,16.55772325,224.17,224.07,1.19782827]
[1734483953699,16.55772325,224.15,224.07,0.5287683]
[1734483953896,16.55772325,224.13,224.07,0.5287683]
[1734483954219,16.55772325,224.14,224.07,0.5287683]
[1734483954422,16.55772325,224.18,224.08,0.6692596]
[1734483954596,16.55772325,224.2,224.09,5.91071479]
[1734483954798,16.55772325,224.2,224.1,0.66906019]
[1734483955209,16.55772325,224.2,224.12,20.0]
[1734483956815,16.55772325,224.22,224.13,24.44596942]
[1734483957026,16.55772325,224.26,224.16,20.0]
[1734483957707,16.55772325,224.24,224.16,20.0]
[1734483958606,16.55772325,224.26,224.16,20.0]
[1734483959230,16.55772325,224.24,224.16,20.0]
[1734483959927,6.1434,224.27,224.16,20.0]
[1734483960233,16.55772325,224.33,224.21,20.0]
[1734483960409,16.55772325,224.33,224.22,0.66877526]
[1734483960610,16.55772325,224.35,224.26,20.0]
[1734483960810,16.55772325,224.28,224.17,12.46195376]
[1734483961007,16.55772325,224.22,224.2,20.0]
[1734483961217,16.55772325,224.22,224.1,2.30415349]
[1734483962121,16.55772325,224.22,224.1,2.30433095]
[1734483962327,16.55772325,224.22,224.1,8.21504574]
[1734483962629,16.55772325,224.22,224.11,5.91071479]
[1734483963036,16.55772325,224.24,224.12,0.66906417]
[1734483963207,16.55772325,224.28,224.16,20.0]
[1734483963529,16.55772325,224.28,224.13,23.876884]
[1734483963530,16.55772325,224.3,224.21,20.0]
[1734483963735,6.169,224.31,224.21,20.0]
[1734483963952,16.55772325,224.3,224.21,20.0]
[1734483964235,6.169,224.31,224.2,20.0]
[1734483964236,16.55772325,224.28,224.2,20.0]
[1734483964833,16.55772325,224.24,224.13,0.66887437]
[1734483965010,16.55772325,224.24,224.13,20.66887437]
[1734483965209,16.55772325,224.24,224.13,20.0]
[1734483965410,16.55772325,224.24,224.11,0.76903712]
[1734483965834,16.55772325,224.24,224.11,6.67975191]
[1734483966618,16.55772325,224.22,224.14,20.0]
[1734483968115,16.55772325,224.22,224.08,5.01603897]
[1734483968116,16.55772325,224.18,224.05,2.18261571]
[1734483968330,16.55772325,224.18,224.05,2.28261571]
[1734483969122,16.55772325,224.2,224.08,0.66922734]
[1734483969318,16.55772325,224.22,224.09,23.776884]
[1734483969526,16.55772325,224.22,224.1,0.66910022]
[1734483969726,16.55772325,224.2,224.12,20.0]
[1734483969930,16.55772325,224.2,224.08,5.91071479]
[1734483970515,16.55772325,224.18,224.07,0.5287683]
[1734483970961,16.55772325,224.14,224.07,0.5287683]
[1734483971766,16.55772325,224.16,224.07,0.5287683]
[1734483973426,16.55772325,224.12,224.07,0.5287683]
[1734483973825,16.55772325,224.1,224.07,0.5287683]
[1734483974620,16.55772325,224.08,224.07,0.5287683]
[1734483975440,22.72672325,224.08,224.07,0.5287683]
[1734483978067,16.55772325,224.08,224.07,0.5287683]
[1734483978563,16.55772325,224.11,224.07,0.5287683]
[1734483979640,16.55772325,224.09,224.07,0.5287683]
[1734483982037,16.55772325,224.08,224.07,0.5287683]
[1734483982242,16.55772325,224.09,224.07,0.5287683]
[1734483984855,16.55772325,224.1,224.07,0.5287683]
[1734483985944,16.55772325,224.08,224.07,0.5287683]
[1734483987570,40.33460725,224.08,224.07,0.5287683]
[1734483987764,23.776884,224.07,223.93,1.5135]
[1734483987965,16.55772325,223.98,223.93,1.5135]
[1734483988564,16.55772325,223.98,223.86,5.04948045]
[1734483989451,16.55772325,223.98,223.86,2.32299631]
[1734483989655,16.55772325,223.96,223.9,20.0]
[1734483989846,16.55772325,223.96,223.87,23.776884]
[1734483990043,16.55772325,223.96,223.86,1.5532]
[1734483990355,16.55772325,223.98,223.86,1.5532]
[1734483990554,16.55772325,223.97,223.86,1.5532]
[1734483990957,16.55772325,223.96,223.86,1.5532]
[1734483991153,16.55772325,223.96,223.88,20.0]
[1734483991549,16.55772325,223.97,223.88,20.0]
[1734483991752,16.55772325,223.96,223.88,20.0]
[1734483992950,16.55772325,223.94,223.86,1.5532]
[1734483993171,16.55772325,223.92,223.86,1.5532]
[1734483993351,16.55772325,223.91,223.85,0.5287683]
[1734483994472,16.55772325,223.89,223.85,0.5287683]
[1734483994852,16.55772325,223.91,223.85,0.5287683]
[1734483995876,16.55772325,223.89,223.85,0.5287683]
[1734483997265,16.55772325,223.91,223.85,0.5287683]
[1734483998474,16.55772325,223.94,223.85,0.5287683]
[1734483998666,16.55772325,223.94,223.86,20.0]
[1734483998993,16.55772325,223.98,223.9,20.0]
[1734484002171,16.55772325,224.0,223.91,20.0]
[1734484003790,16.55772325,224.02,223.95,20.0]
[1734484004102,16.55772325,224.06,223.95,20.0]
[1734484004581,16.55772325,224.06,223.99,20.0]
[1734484005160,16.55772325,224.06,223.96,23.776884]
[1734484005654,16.55772325,224.06,223.99,20.0]
[1734484008258,8.70463108,224.12,223.94,20.0]
[1734484008459,16.55772325,224.02,223.94,20.0]
[1734484008665,16.55772325,224.04,223.94,20.0]
[1734484008860,8.70463108,224.12,223.98,20.0]
[1734484008861,16.55772325,224.06,223.98,20.0]
[1734484009066,16.55772325,224.08,223.98,20.0]
[1734484009371,16.55772325,224.1,224.02,20.0]
[1734484010062,10.41787992,224.09,224.02,20.0]
[1734484010267,10.41787992,224.11,224.02,20.0]
[1734484010485,10.41787992,224.13,224.02,20.0]
[1734484010692,10.41787992,224.13,224.06,20.0]
[1734484011200,10.41787992,224.13,224.04,20.0]
[1734484011697,10.41787992,224.13,224.03,23.776884]
[1734484011991,10.41787992,224.15,224.07,23.776884]
[1734484012494,10.41787992,224.15,224.1,20.0]
[1734484012667,10.41787992,224.17,224.1,20.0]
[1734484013595,10.41787992,224.15,224.06,20.0]
[1734484014366,10.41787992,224.17,224.1,20.0]
[1734484015468,10.41787992,224.21,224.14,20.0]
[1734484015673,10.41787992,224.23,224.14,20.0]
[1734484016290,10.41787992,224.21,224.14,20.0]
[1734484017186,10.41787992,224.17,224.13,20.0]
[1734484017392,10.41787992,224.19,224.06,5.91071479]
[1734484017578,10.41787992,224.21,224.09,20.0]
[1734484017781,10.41787992,224.21,224.13,20.0]
[1734484017982,10.41787992,224.25,224.17,20.0]
[1734484018367,6.582,224.33,224.18,23.776884]
[1734484018585,10.41787992,224.31,224.21,20.0]
[1734484018889,10.41787992,224.34,224.22,20.0]
[1734484019494,10.41787992,224.32,224.22,20.0]
[1734484019679,10.41787992,224.3,224.22,20.1]
[1734484020074,16.64035478,224.29,224.22,20.1]
[1734484020574,16.64035478,224.32,224.22,20.1]
[1734484021891,6.582,224.39,224.22,0.1]
[1734484021892,16.64035478,224.3,224.22,0.1]
[1734484022075,16.64035478,224.26,224.19,8.68548737]
[1734484022794,16.64035478,224.27,224.19,8.68548737]
[1734484023393,16.64035478,224.24,224.19,5.91071479]
[1734484023579,16.64035478,224.24,224.16,0.1]
[1734484024390,16.64035478,224.24,224.13,5.91071479]
[1734484024391,16.64035478,224.19,224.13,5.91071479]
[1734484024590,16.64035478,224.18,224.1,1.6048]
[1734484024973,16.64035478,224.19,224.1,1.6048]
[1734484025373,16.64035478,224.21,224.1,7.51551479]
[1734484025595,16.64035478,224.21,224.12,2.69022517]
[1734484025806,16.64035478,224.24,224.14,20.0]
[1734484026186,16.64035478,224.24,224.16,20.0]
[1734484026693,16.64035478,224.23,224.16,20.0]
[1734484026868,16.64035478,224.24,224.16,20.0]
[1734484027072,16.64035478,224.28,224.16,26.01071479]
[1734484027388,16.64035478,224.3,224.2,20.0]
[1734484028200,6.365,224.34,224.21,1.6551]
[1734484028384,16.64035478,224.34,224.24,20.0]
[1734484028720,16.64035478,224.34,224.24,25.91071479]
[1734484028877,16.64035478,224.32,224.24,25.91071479]
[1734484030217,16.64035478,224.31,224.24,25.91071479]
[1734484030426,16.64035478,224.32,224.24,25.91071479]
[1734484031127,23.776884,224.39,224.24,26.01071479]
[1734484031128,16.64035478,224.35,224.24,26.01071479]
[1734484031495,16.64035478,224.35,224.28,20.0]
[1734484034185,16.64035478,224.33,224.28,20.0]
[1734484034807,16.64035478,224.33,224.25,5.91071479]
[1734484035179,23.30195478,224.4,224.25,5.91071479]
[1734484035180,16.64035478,224.31,224.25,5.91071479]
[1734484035387,16.64035478,224.31,224.21,1.6551]
[1734484035691,16.64035478,224.29,224.21,1.6551]
[1734484035895,16.64035478,224.26,224.2,1.74628922]
[1734484036092,16.64035478,224.26,224.19,5.91071479]
[1734484036335,16.64035478,224.28,224.19,7.74094596]
[1734484036681,16.64035478,224.28,224.19,5.91071479]
[1734484036888,16.64035478,224.26,224.19,5.91071479]
[1734484037228,16.64035478,224.24,224.16,1.7551]
[1734484037392,16.64035478,224.28,224.16,1.7551]
[1734484037592,16.64035478,224.26,224.17,5.91071479]
[1734484038025,16.64035478,224.24,224.17,5.91071479]
[1734484038392,16.64035478,224.24,224.2,20.0]
[1734484039215,16.64035478,224.21,224.17,5.91071479]
[1734484039496,16.64035478,224.19,224.12,1.6551]
[1734484040822,16.64035478,224.19,224.1,11.02675376]
[1734484041200,16.64035478,224.28,224.1,5.91071479]
[1734484041201,16.64035478,224.17,224.1,5.91071479]
[1734484042210,23.30195478,224.2,224.1,5.91071479]
[1734484042614,16.64035478,224.19,224.13,20.0]
[1734484042820,16.64035478,224.17,224.13,20.0]
[1734484043142,16.64035478,224.18,224.13,20.0]
[1734484043904,16.64035478,224.16,224.13,20.0]
[1734484044114,16.64035478,224.16,224.09,20.0]
[1734484045038,16.64035478,224.18,224.09,20.0]
[1734484045346,23.30195478,224.2,224.09,25.91071479]
[1734484045940,23.30195478,224.2,224.09,26.01071479]
[1734484046450,23.30195478,224.2,224.1,5.91071479]
[1734484046665,16.64035478,224.2,224.13,20.0]
[1734484048171,10.40875481,224.2,224.13,20.1]
[1734484048471,10.40875481,224.18,224.13,20.0]
[1734484049925,10.40875481,224.2,224.13,20.1]
[1734484051829,10.40875481,224.2,224.13,21.8946681]
[1734484053162,10.40875481,224.22,224.13,21.8946681]
[1734484053365,10.40875481,224.22,224.14,20.0]
[1734484053544,10.40875481,224.22,224.13,21.8946681]
[1734484054159,10.40875481,224.24,224.13,21.8946681]
[1734484054551,10.40875481,224.22,224.13,21.8946681]
[1734484054754,10.40875481,224.2,224.13,21.7946681]
[1734484055469,10.40875481,224.22,224.13,21.7946681]
[1734484056036,10.40875481,224.2,224.13,0.1]
[1734484056737,10.40875481,224.2,224.12,1.90165403]
[1734484057165,10.40875481,224.2,224.12,0.1]
[1734484057371,34.18563881,224.24,224.13,20.0]
[1734484057589,10.40875481,224.24,224.13,20.0]
[1734484059143,10.40875481,224.24,224.13,20.1]
[1734484059343,6.6616,224.25,224.13,20.1]
[1734484059549,10.40875481,224.24,224.13,20.1]
[1734484061045,10.40875481,224.22,224.13,20.1]
[1734484061288,10.40875481,224.2,224.13,20.0]
[1734484061456,10.40875481,224.2,224.1,1.8798006]
[1734484062875,23.776884,224.19,224.1,1.8798006]
[1734484063271,23.776884,224.19,224.1,1.7798006]
[1734484063581,23.776884,224.19,224.07,0.1]
[1734484063582,10.40875481,224.16,224.07,0.1]
[1734484064167,10.40875481,224.14,224.06,0.1]
[1734484064693,34.18563881,224.15,224.06,0.1]
[1734484066169,34.18563881,224.15,224.06,1.87961992]
[1734484067384,10.40875481,224.17,224.06,1.87961992]
[1734484068004,10.40875481,224.19,224.06,1.87961992]
[1734484071586,23.776884,224.2,224.06,1.87961992]
[1734484073510,23.776884,224.2,224.1,20.0]
[1734484073682,23.776884,224.2,224.06,1.87961992]
[1734484074275,10.40875481,224.19,224.06,1.87961992]
[1734484074489,10.40875481,224.17,224.06,1.87961992]
[1734484074694,23.776884,224.16,224.06,1.87961992]
[1734484078203,23.776884,224.18,224.06,1.87961992]
[1734484078394,23.776884,224.2,224.06,1.87961992]
[1734484079190,23.776884,224.22,224.06,1.87961992]
[1734484079688,10.40875481,224.21,224.06,1.87961992]
[1734484080197,23.776884,224.2,224.06,1.87961992]
[1734484080383,8.0736,224.18,224.06,1.77961992]
[1734484080582,10.40875481,224.09,224.0,2.63261085]
[1734484080782,30.299684,224.08,223.99,0.1]
[1734484081028,30.299684,224.08,223.99,1.85023019]
[1734484081193,30.299684,224.08,223.99,0.1]
[1734484081392,6.5228,224.17,223.99,0.1]
[1734484081693,23.776884,224.13,223.97,2.72620898]
[1734484081881,10.40875481,224.12,223.97,2.72620898]
[1734484082087,10.40875481,224.08,223.97,0.1]
[1734484082299,10.40875481,224.06,223.96,1.90240179]
[1734484082510,23.776884,224.05,223.96,1.80240179]
[1734484082696,23.776884,224.05,223.93,0.1]
[1734484083197,23.776884,224.05,223.93,2.66259493]
[1734484083711,23.776884,224.01,223.93,0.1]
[1734484083913,23.776884,224.01,223.91,1.93520532]
[1734484084688,10.40875481,224.0,223.91,1.93520532]
[1734484084888,23.776884,223.99,223.91,1.83520532]
[1734484085188,29.887484,223.97,223.9,2.62432445]
[1734484085595,29.887484,223.97,223.86,0.1]
[1734484087320,10.40875481,223.94,223.85,2.31485847]
[1734484087511,23.776884,223.93,223.85,0.5287683]
[1734484088137,23.776884,223.94,223.85,0.5287683]
[1734484088717,6.1106,223.97,223.85,0.6287683]
[1734484090242,16.51935481,223.97,223.85,0.6287683]
[1734484090742,23.776884,223.96,223.85,0.6287683]
[1734484091242,6.1106,223.97,223.85,0.6287683]
[1734484092343,34.18563881,223.96,223.85,0.6287683]
[1734484092713,10.40875481,223.94,223.85,0.5287683]
[1734484093166,23.776884,223.93,223.85,0.5287683]
[1734484094018,23.776884,223.91,223.85,0.5287683]
[1734484094434,1.5349,223.92,223.85,0.5287683]
[1734484095345,10.40875481,223.95,223.85,0.5287683]
[1734484096338,10.40875481,223.95,223.85,0.6287683]
[1734484099739,10.20439291,223.95,223.85,0.6287683]
[1734484101429,10.40875481,223.93,223.85,0.5287683]
[1734484101632,23.776884,223.92,223.85,0.5287683]
[1734484101844,10.40875481,223.89,223.85,0.5287683]
[1734484102286,10.40875481,223.87,223.85,0.5287683]
[1734484103851,34.18563881,223.86,223.85,0.5287683]
[1734484104462,35.72053881,223.86,223.85,0.5287683]
[1734484105984,35.72053881,223.86,223.66,0.1]
[1734484106275,10.40875481,223.78,223.66,0.1]
[1734484106676,23.776884,223.77,223.66,0.1]
[1734484107073,23.776884,223.79,223.66,0.1]
[1734484107291,10.40875481,223.83,223.66,20.1]
[1734484107597,1.5349,223.86,223.66,20.1]
[1734484107598,23.776884,223.84,223.68,20.0]
[1734484107808,10.40875481,223.85,223.71,20.0]
[1734484107987,10.40875481,223.85,223.71,20.1]
[1734484108285,6.209,223.87,223.72,1.631]
[1734484108790,6.209,223.87,223.73,20.0]
[1734484109092,6.209,223.87,223.74,20.0]
[1734484111368,11.94365481,223.92,223.78,20.0]
[1734484113103,23.776884,223.91,223.78,20.0]
[1734484113457,23.776884,223.91,223.78,20.1]
[1734484113652,10.40875481,223.9,223.78,20.1]
[1734484113881,10.40875481,223.88,223.78,0.1]
[1734484114089,23.776884,223.87,223.78,0.1]
[1734484116884,10.40875481,223.86,223.75,1.79998333]
[1734484117086,10.40875481,223.8,223.69,0.1]
[1734484117305,10.40875481,223.8,223.69,1.90415349]
[1734484118985,10.40875481,223.8,223.69,1.80415349]
[1734484119180,10.40875481,223.8,223.68,20.0]
[1734484119997,10.40875481,223.8,223.68,21.86252194]
[1734484120309,10.40875481,223.86,223.72,20.0]
[1734484120632,16.43275481,223.88,223.72,20.1]
[1734484120777,11.94365481,223.92,223.76,20.1]
[1734484120977,11.94365481,223.92,223.77,1.5772]
[1734484121184,10.40875481,223.92,223.78,20.0]
[1734484121405,10.40875481,223.92,223.78,20.1]
[1734484121781,16.43275481,223.94,223.78,20.1]
[1734484125301,16.43275481,223.94,223.78,21.85175026]
[1734484125598,10.40875481,223.92,223.78,21.85175026]
[1734484125801,23.776884,223.91,223.78,21.85175026]
[1734484125998,10.40875481,223.9,223.78,1.85175026]
[1734484127596,10.40875481,223.9,223.8,20.0]
[1734484127799,10.40875481,223.9,223.78,22.75396423]
[1734484128691,10.40875481,223.92,223.78,22.75396423]
[1734484128914,23.776884,223.93,223.78,22.75396423]
[1734484129093,16.43275481,223.94,223.78,22.75396423]
[1734484129894,1.5932,223.97,223.82,20.0]
[1734484130222,6.1412,224.0,223.86,20.0]
[1734484130408,6.1412,224.0,223.84,1.5081]
[1734484130610,6.1412,224.0,223.88,20.0]
[1734484130803,6.1412,224.0,223.88,20.1]
[1734484131823,10.40875481,223.99,223.88,0.1]
[1734484132741,6.1412,224.0,223.88,0.1]
[1734484135105,10.40875481,223.99,223.88,0.1]
[1734484135524,6.1412,224.05,223.9,20.0]
[1734484135815,11.936255,224.09,223.94,20.0]
[1734484135816,10.40875481,224.09,223.94,20.0]
[1734484136010,6.1412,224.1,223.94,0.1]
[1734484136411,10.40875481,224.13,223.96,20.0]
[1734484137544,23.776884,224.1,223.96,20.0]
[1734484137743,10.40875481,224.09,223.96,20.0]
[1734484137951,10.40875481,224.09,223.96,20.1]
[1734484138507,23.776884,224.1,223.96,20.1]
[1734484138708,34.18563881,224.13,223.96,20.1]
[1734484139108,34.18563881,224.13,223.96,21.87800397]
[1734484139662,10.40875481,224.11,223.96,21.87800397]
[1734484139826,23.776884,224.1,223.96,21.87800397]
[1734484140329,10.40875481,224.09,223.96,1.87800397]
[1734484140830,23.776884,224.1,223.96,1.87800397]
[1734484141135,10.40875481,224.09,223.96,0.1]
[1734484141341,10.40875481,224.07,223.94,2.78798249]
[1734484142630,10.40875481,224.07,223.95,20.0]
[1734484143052,23.776884,224.06,223.95,20.0]
[1734484144041,23.776884,224.04,223.92,3.36955326]
[1734484144762,23.776884,224.04,223.92,4.23195106]
[1734484145274,23.776884,224.02,223.92,1.6081]
[1734484145464,23.776884,224.02,223.87,9.64374378]
[1734484145627,10.40875481,224.03,223.87,9.64374378]
[1734484145823,6.2777,224.04,223.88,2.70279405]
[1734484146672,6.2777,224.04,223.89,23.776884]
[1734484147083,34.18563881,224.03,223.92,0.1]
[1734484147291,10.40875481,224.01,223.92,0.1]
[1734484148891,10.40875481,223.99,223.87,3.48204378]
[1734484149094,10.40875481,223.97,223.87,1.564]
[1734484149972,23.776884,223.96,223.87,1.564]
[1734484150347,10.40875481,223.95,223.84,1.83069378]
[1734484150596,10.40875481,223.93,223.81,1.664]
[1734484150814,10.40875481,223.91,223.81,1.564]
[1734484151114,34.18563881,223.93,223.81,1.564]
[1734484151470,23.776884,223.9,223.76,7.743]
[1734484152016,10.40875481,223.88,223.79,20.0]
[1734484152184,10.40875481,223.86,223.75,1.77347339]
[1734484152388,23.776884,223.85,223.72,0.1]
[1734484152588,23.776884,223.83,223.72,0.1]
[1734484152904,34.18563881,223.83,223.72,0.1]
[1734484153066,34.18563881,223.83,223.71,3.33698996]
[1734484153067,40.46333881,223.83,223.71,1.77298996]
[1734484153265,23.776884,223.8,223.67,1.664]
[1734484153468,23.776884,223.8,223.67,3.42712008]
[1734484153697,23.776884,223.8,223.67,1.664]
[1734484154478,10.40875481,223.79,223.67,1.564]
[1734484154688,10.40875481,223.77,223.64,1.93005584]
[1734484154896,23.776884,223.76,223.64,1.93005584]
[1734484155409,34.18563881,223.76,223.64,1.93005584]
[1734484155583,10.40875481,223.78,223.64,1.93005584]
[1734484155906,23.776884,223.78,223.64,1.93005584]
[1734484156070,23.776884,223.76,223.64,1.93005584]
[1734484156267,23.776884,223.76,223.64,0.1]
[1734484156703,23.776884,223.74,223.63,0.5287683]
[1734484157090,10.40875481,223.73,223.63,0.5287683]
[1734484157307,34.18563881,223.74,223.63,0.5287683]
[1734484157479,23.776884,223.72,223.63,0.5287683]
[1734484157679,23.776884,223.7,223.63,0.5287683]
[1734484158106,34.18563881,223.7,223.63,0.5287683]
[1734484158424,10.40875481,223.68,223.63,0.5287683]
[1734484159717,23.776884,223.67,223.63,0.5287683]
[1734484160273,16.73708908,223.69,223.63,0.5287683]
[1734484160712,23.776884,223.68,223.63,0.5287683]
[1734484160914,16.73708908,223.68,223.63,0.5287683]
[1734484161091,23.776884,223.67,223.63,0.5287683]
[1734484161570,23.776884,223.66,223.63,0.5287683]
[1734484162018,40.51397308,223.66,223.63,0.5287683]
[1734484163340,23.776884,223.68,223.63,0.5287683]
[1734484163521,23.776884,223.67,223.63,0.5287683]
[1734484163722,40.51397308,223.67,223.63,0.5287683]
[1734484163940,16.73708908,223.67,223.63,0.5287683]
[1734484164228,23.776884,223.66,223.63,0.5287683]
[1734484164853,16.73708908,223.67,223.63,0.5287683]
[1734484165542,23.776884,223.66,223.63,0.5287683]
[1734484166159,16.73708908,223.65,223.63,0.5287683]
[1734484166544,23.776884,223.64,223.63,0.5287683]
[1734484166865,23.57251797,223.64,223.63,0.5287683]
[1734484168360,40.30960705,223.64,223.63,0.5287683]
[1734484168563,16.73708908,223.67,223.63,0.5287683]
[1734484168759,16.73708908,223.69,223.63,0.5287683]
[1734484169156,16.73708908,223.68,223.63,0.5287683]
[1734484169958,23.776884,223.67,223.63,0.5287683]
[1734484170153,16.73708908,223.68,223.63,0.5287683]
[1734484170374,16.73708908,223.69,223.63,0.5287683]
[1734484171572,16.73708908,223.72,223.63,0.5287683]
[1734484171751,23.776884,223.72,223.63,0.5287683]
[1734484171949,16.73708908,223.74,223.63,0.5287683]
[1734484172268,16.73708908,223.75,223.63,0.5287683]